fUSD/lending_fUSD_20240222
["ID","MTS","AMOUNT","RATE_DAILY","PERIOD"]
[314879001,1708609870293,-500.0,0.00033424,4]
[314879002,1708609870303,-950.4,0.00033424,4]
[314879003,1708609870313,-1421.75,0.00033424,4]
[314879004,1708609870323,-1040.69,0.00033424,4]
[314879005,1708609870333,-521.53053923,0.00033424,4]
[314879006,1708609870575,-500.0,0.00033424,4]
[314879007,1708609870604,-3116.3,0.00033424,4]
[314879008,1708609870621,-1502.5,0.00033424,4]
[314879009,1708609870642,-500.0,0.00033424,4]
[314879010,1708609870675,-528.08,0.00033424,4]
[314879011,1708609870688,-500.0,0.00033424,4]
[314879012,1708609870704,-505.73,0.00033424,4]
[314879013,1708609870714,-1446.08,0.00033424,4]
[314879014,1708609870742,-1404.04,0.00033424,4]
[314879015,1708609870752,-1229.8,0.00033424,4]
[314879016,1708609870765,-7208.8,0.00033424,4]
[314879017,1708609870795,-843.92,0.00033424,4]
[314879018,1708609870813,-4962.42,0.00033424,4]
[314879019,1708609870831,-500.0,0.00033424,4]
[314879020,1708609870846,-528.75,0.00033424,4]
[314879021,1708609870861,-500.0,0.00033424,4]
[314879022,1708609870876,-500.0,0.00033424,4]
[314879023,1708609870887,-500.0,0.00033424,4]
[314879024,1708609870899,-702.99,0.00033424,4]
[314879025,1708609870910,-629.9,0.00033424,4]
[314879026,1708609870921,-165.83929594,0.00033424,4]
[314879027,1708609870932,-731.77,0.00033424,4]
[314879028,1708609870942,-977.25,0.00033424,4]
[314879029,1708609870953,-649.22,0.00033424,4]
[314879030,1708609870964,-500.0,0.00033424,4]
[314879031,1708609870974,-500.0,0.00033424,4]
[314879032,1708609870984,-3093.42,0.00033424,4]
[314879033,1708609870994,-643.71,0.00033424,4]
[314879034,1708609871004,-500.0,0.00033424,4]
[314879035,1708609871014,-886.86,0.00033424,4]
[314879036,1708609871025,-500.0,0.00033424,4]
[314879037,1708609871036,-889.43,0.00033424,4]
[314879038,1708609871045,-502.79,0.00033424,4]
[314879039,1708609871055,-500.0,0.00033424,4]
[314879040,1708609871066,-701.23,0.00033424,4]
[314879041,1708609871076,-8263.2,0.00033424,4]
[314879042,1708609871086,-2446.43,0.00033424,4]
[314879043,1708609871101,-1021.2,0.00033424,4]
[314879044,1708609871112,-500.0,0.00033424,4]
[314879045,1708609871123,-5214.06,0.00033424,4]
[314879046,1708609871133,-647.5,0.00033424,4]
[314879047,1708609871143,-569.98,0.00033424,4]
[314879048,1708609871155,-547.83,0.00033424,4]
[314879049,1708609871166,-500.0,0.00033424,4]
[314879050,1708609871176,-500.0,0.00033424,4]
[314879051,1708609871186,-575.35,0.00033424,4]
[314879052,1708609871197,-941.27,0.00033424,4]
[314879053,1708609871208,-3715.35,0.00033424,4]
[314879054,1708609871219,-184.32992331,0.00033424,4]
[314879055,1708609871229,-500.0,0.00033424,4]
[314879056,1708609871242,-838.99,0.00033424,4]
[314879057,1708609871253,-512.6640818,0.00033424,4]
[314879058,1708609871263,-500.0,0.00033424,4]
[314879059,1708609871274,-5740.85,0.00033424,4]
[314879060,1708609871284,-500.0,0.00033424,4]
[314879061,1708609871294,-500.0,0.00033424,4]
[314879062,1708609871305,-500.0,0.00033424,4]
[314879063,1708609871315,-601.28,0.00033424,4]
[314879064,1708609871325,-500.0,0.00033424,4]
[314879065,1708609871335,-500.0,0.00033424,4]
[314879066,1708609871345,-2154.17,0.00033424,4]
[314879067,1708609871356,-500.0,0.00033424,4]
[314879068,1708609871366,-893.79,0.00033424,4]
[314879069,1708609871376,-1131.48,0.00033424,4]
[314879070,1708609871386,-500.0,0.00033424,4]
[314879071,1708609871396,-14478.67,0.00033424,4]
[314879072,1708609871406,-500.0,0.00033424,4]
[314879073,1708609871415,-1997.78,0.00033424,4]
[314879074,1708609871425,-500.0,0.00033424,4]
[314879075,1708609871435,-500.0,0.00033424,4]
[314879076,1708609871444,-844.21,0.00033424,4]
[314879077,1708609871454,-500.0,0.00033424,4]
[314879078,1708609871464,-500.0,0.00033424,4]
[314879079,1708609871474,-500.0,0.00033424,4]
[314879080,1708609871484,-500.0,0.00033424,4]
[314879081,1708609871493,-1271.39,0.00033424,4]
[314879082,1708609871503,-500.0,0.00033424,4]
[314879083,1708609871512,-500.0,0.00033424,4]
[314879084,1708609871522,-500.0,0.00033424,4]
[314879085,1708609871532,-2467.69,0.00033424,4]
[314879086,1708609871541,-500.0,0.00033424,4]
[314879087,1708609871550,-500.0,0.00033424,4]
[314879088,1708609871560,-500.0,0.00033424,4]
[314879089,1708609871569,-704.75,0.00033424,4]
[314879090,1708609871578,-532.13,0.00033424,4]
[314879091,1708609871588,-558.03,0.00033424,4]
[314879092,1708609871597,-2068.83,0.00033424,4]
[314879093,1708609871608,-12300.35,0.00033424,4]
[314879094,1708609871617,-1288.97,0.00033424,4]
[314879095,1708609871627,-2578.42,0.00033424,4]
[314879096,1708609871637,-500.0,0.00033424,4]
[314879097,1708609871647,-500.0,0.00033424,4]
[314879098,1708609871656,-500.0,0.00033424,4]
[314879099,1708609871668,-659.64,0.00033424,4]
[314879100,1708609871678,-500.0,0.00033424,4]
[314879101,1708609871689,-500.0,0.00033424,4]
[314879102,1708609871698,-658.49,0.00033424,4]
[314879103,1708609871708,-518.46192316,0.00033424,4]
[314879104,1708609871718,-13777.24,0.00033424,4]
[314879105,1708609871727,-500.0,0.00033424,4]
[314879106,1708609871736,-500.0,0.00033424,4]
[314879107,1708609871746,-556.92931547,0.00033424,4]
[314879108,1708609871756,-500.0,0.00033424,4]
[314879109,1708609871765,-2928.23,0.00033424,4]
[314879110,1708609871775,-1149.99,0.00033424,4]
[314879111,1708609871785,-3224.65,0.00033424,4]
[314879112,1708609871794,-990.95,0.00033424,4]
[314879113,1708609871804,-500.0,0.00033424,4]
[314879114,1708609871814,-914.8,0.00033424,4]
[314879115,1708609871824,-500.0,0.00033424,4]
[314879116,1708609871834,-8896.4,0.00033424,4]
[314879117,1708609871843,-500.0,0.00033424,4]
[314879118,1708609871854,-500.0,0.00033424,4]
[314879119,1708609871863,-500.0,0.00033424,4]
[314879120,1708609871874,-368.95362354,0.00033424,4]
[314879121,1708609871884,-4299.33,0.00033424,4]
[314879122,1708609871895,-500.0,0.00033424,4]
[314879123,1708609871904,-829.97,0.00033424,4]
[314879124,1708609871914,-500.0,0.00033424,4]
[314879125,1708609871923,-1770.84,0.00033424,4]
[314879126,1708609871933,-2126.98,0.00033424,4]
[314879127,1708609871943,-500.0,0.00033424,4]
[314879128,1708609871953,-215.24,0.00033424,4]
[314879129,1708609871963,-735.34,0.00033424,4]
[314879130,1708609871973,-500.0,0.00033424,4]
[314879131,1708609871982,-500.0,0.00033424,4]
[314879132,1708609871991,-578.04,0.00033424,4]
[314879133,1708609872001,-500.0,0.00033424,4]
[314879134,1708609872010,-500.0,0.00033424,4]
[314879135,1708609872020,-500.0,0.00033424,4]
[314879136,1708609872030,-4697.42,0.00033424,4]
[314879137,1708609872039,-2452.59,0.00033424,4]
[314879138,1708609872048,-923.4,0.00033424,4]
[314879139,1708609872068,-650.6,0.00033424,4]
[314879140,1708609872080,-3314.65,0.00033424,4]
[314879141,1708609872091,-500.0,0.00033424,4]
[314879142,1708609872101,-4338.91,0.00033424,4]
[314879143,1708609872112,-500.0,0.00033424,4]
[314879144,1708609872122,-500.0,0.00033424,4]
[314879145,1708609872133,-759.32,0.00033424,4]
[314879146,1708609872143,-4053.5,0.00033424,4]
[314879147,1708609872158,-567.71,0.00033424,4]
[314879148,1708609872167,-813.31,0.00033424,4]
[314879149,1708609872178,-500.0,0.00033424,4]
[314879150,1708609872188,-3686.5,0.00033424,4]
[314879151,1708609872198,-500.0,0.00033424,4]
[314879152,1708609872209,-500.0,0.00033424,4]
[314879153,1708609872219,-500.0,0.00033424,4]
[314879154,1708609872230,-500.0,0.00033424,4]
[314879155,1708609872239,-500.0,0.00033424,4]
[314879156,1708609872249,-500.0,0.00033424,4]
[314879157,1708609872259,-37015.41,0.00033424,4]
[314879158,1708609872269,-500.0,0.00033424,4]
[314879159,1708609872279,-641.36,0.00033424,4]
[314879160,1708609872288,-500.0,0.00033424,4]
[314879161,1708609872298,-500.0,0.00033424,4]
[314879162,1708609872308,-500.0,0.00033424,4]
[314879163,1708609872318,-16580.01,0.00033424,4]
[314879164,1708609872328,-500.0,0.00033424,4]
[314879165,1708609872338,-500.0,0.00033424,4]
[314879166,1708609872347,-870.83,0.00033424,4]
[314879167,1708609872357,-500.0,0.00033424,4]
[314879168,1708609872367,-500.0,0.00033424,4]
[314879169,1708609872376,-500.0,0.00033424,4]
[314879170,1708609872386,-500.0,0.00033424,4]
[314879171,1708609872397,-2063.07,0.00033424,4]
[314879172,1708609872407,-500.0,0.00033424,4]
[314879173,1708609872416,-500.0,0.00033424,4]
[314879174,1708609872426,-500.0,0.00033424,4]
[314879175,1708609872436,-500.0,0.00033424,4]
[314879176,1708609872445,-2528.4,0.00033424,4]
[314879177,1708609872455,-500.0,0.00033424,4]
[314879178,1708609872465,-500.0,0.00033424,4]
[314879179,1708609872475,-3797.29,0.00033424,4]
[314879180,1708609872485,-500.0,0.00033424,4]
[314879181,1708609872494,-500.0,0.00033424,4]
[314879182,1708609872504,-541.04,0.00033424,4]
[314879183,1708609872513,-500.0,0.00033424,4]
[314879184,1708609872523,-1328.89,0.00033424,4]
[314879185,1708609872532,-919.03,0.00033424,4]
[314879186,1708609872542,-2163.44,0.00033424,4]
[314879187,1708609872580,-1325.24,0.00033424,4]
[314879188,1708609872589,-500.0,0.00033424,4]
[314879189,1708609872599,-500.0,0.00033424,4]
[314879190,1708609872609,-1785.9,0.00033424,4]
[314879191,1708609872618,-500.0,0.00033424,4]
[314879192,1708609872628,-669.96,0.00033424,4]
[314879193,1708609872637,-901.26828824,0.00033424,4]
[314879194,1708609872674,-737.06171176,0.00033424,4]
[314879195,1708609872684,-544.98,0.00033424,4]
[314879196,1708609872694,-500.0,0.00033424,4]
[314879197,1708609872704,-2071.53,0.00033424,4]
[314879198,1708609872714,-3807.09,0.00033424,4]
[314879199,1708609872723,-500.0,0.00033424,4]
[314879200,1708609872733,-500.0,0.00033424,4]
[314879201,1708609872743,-2877.7,0.00033424,4]
[314879202,1708609872753,-1178.66,0.00033424,4]
[314879203,1708609872763,-500.0,0.00033424,4]
[314879204,1708609872773,-559.65,0.00033424,4]
[314879205,1708609872782,-1197.69,0.00033424,4]
[314879206,1708609872792,-500.0,0.00033424,4]
[314879207,1708609872802,-1046.81,0.00033424,4]
[314879208,1708609872811,-7846.38,0.00033424,4]
[314879209,1708609872821,-10097.9,0.00033424,4]
[314879210,1708609872830,-1724.08,0.00033424,4]
[314879211,1708609872840,-2120.42,0.00033424,4]
[314879212,1708609872850,-500.0,0.00033424,4]
[314879213,1708609872859,-500.0,0.00033424,4]
[314879214,1708609872869,-500.0,0.00033424,4]
[314879215,1708609872879,-500.0,0.00033424,4]
[314879216,1708609872888,-500.0,0.00033424,4]
[314879217,1708609872897,-12088.18,0.00033424,4]
[314879218,1708609872907,-561.91169666,0.00033424,4]
[314879219,1708609873280,-603.83,0.00033424,4]
[314879220,1708609873304,-500.0,0.00033424,4]
[314879221,1708609873315,-701.44,0.00033424,4]
[314879222,1708609873324,-2687.32,0.00033424,4]
[314879223,1708609873334,-1323.14,0.00033424,4]
[314879224,1708609873344,-500.0,0.00033424,4]
[314879225,1708609873355,-547.17,0.00033424,4]
[314879226,1708609873364,-905.5,0.00033424,4]
[314879227,1708609873373,-541.76,0.00033424,4]
[314879228,1708609873383,-801.92,0.00033424,4]
[314879229,1708609873393,-1040.24,0.00033424,4]
[314879230,1708609873405,-500.0,0.00033424,4]
[314879231,1708609873415,-1484.6,0.00033424,4]
[314879232,1708609873424,-2225.63,0.00033424,4]
[314879233,1708609873433,-500.0,0.00033424,4]
[314879234,1708609873443,-500.0,0.00033424,4]
[314879235,1708609873452,-500.0,0.00033424,4]
[314879236,1708609873462,-500.0,0.00033424,4]
[314879237,1708609873472,-500.0,0.00033424,4]
[314879238,1708609873481,-500.0,0.00033424,4]
[314879239,1708609873491,-500.0,0.00033424,4]
[314879240,1708609873501,-786.32,0.00033424,4]
[314879241,1708609873510,-500.0,0.00033424,4]
[314879242,1708609873520,-11165.04,0.00033424,4]
[314879243,1708609873529,-500.0,0.00033424,4]
[314879244,1708609873539,-500.0,0.00033424,4]
[314879245,1708609873549,-719.87,0.00033424,4]
[314879246,1708609873559,-712.35,0.00033424,4]
[314879247,1708609873569,-500.0,0.00033424,4]
[314879248,1708609873578,-1596.85,0.00033424,4]
[314879249,1708609873587,-315.75913741,0.00033424,4]
[314879250,1708609873597,-500.0,0.00033424,4]
[314879251,1708609873606,-983.24,0.00033424,4]
[314879252,1708609873615,-594.97,0.00033424,4]
[314879253,1708609873624,-500.0,0.00033424,4]
[314879254,1708609873634,-504.73,0.00033424,4]
[314879255,1708609873643,-858.95,0.00033424,4]
[314879256,1708609873656,-500.0,0.00033424,4]
[314879257,1708609873670,-1763.55,0.00033424,4]
[314879258,1708609873680,-500.0,0.00033424,4]
[314879259,1708609873690,-500.0,0.00033424,4]
[314879260,1708609873700,-500.0,0.00033424,4]
[314879261,1708609873709,-150.0,0.00033424,4]
[314879262,1708609873718,-1578.75,0.00033424,4]
[314879263,1708609873727,-1309.91,0.00033424,4]
[314879264,1708609873736,-702.13,0.00033424,4]
[314879265,1708609873746,-500.0,0.00033424,4]
[314879266,1708609873756,-916.66,0.00033424,4]
[314879267,1708609873766,-1326.38,0.00033424,4]
[314879268,1708609873775,-3146.13,0.00033424,4]
[314879269,1708609873785,-1132.55,0.00033424,4]
[314879270,1708609873794,-682.19,0.00033424,4]
[314879271,1708609873803,-1400.86,0.00033424,4]
[314879272,1708609873813,-500.0,0.00033424,4]
[314879273,1708609873823,-675.59,0.00033424,4]
[314879274,1708609873832,-500.0,0.00033424,4]
[314879275,1708609873841,-500.0,0.00033424,4]
[314879276,1708609873851,-500.0,0.00033424,4]
[314879277,1708609873861,-3392.6,0.00033424,4]
[314879278,1708609873870,-412.63728147,0.00033424,4]
[314879279,1708609873885,-631.63271853,0.00033424,4]
[314879280,1708609873895,-142.34258012,0.00033424,4]
[314879281,1708609873924,-458.19741988,0.00033424,4]
[314879282,1708609873933,-508.12155788,0.00033424,4]
[314879283,1708609873942,-4137.96365817,0.00033424,4]
[314879284,1708609875117,-2455.0303,0.00031509,2]
[314879285,1708609875128,-534.85749325,0.00032876,2]
[314879286,1708609875138,-500.0,0.00032876,2]
[314879287,1708609875152,-500.0,0.00032876,2]
[314879288,1708609875163,-643.65,0.0003315,4]
[314879289,1708609875172,-397.16,0.0003315,4]
[314879290,1708609875183,-2527.62634183,0.00033424,4]
[314879291,1708609875195,-5567.52,0.00033424,4]
[314879292,1708609875205,-625.38,0.00033424,4]
[314879293,1708609875215,-3601.15,0.00033424,4]
[314879294,1708609875225,-500.0,0.00033424,4]
[314879295,1708609875238,-500.0,0.00033424,4]
[314879296,1708609875248,-500.0,0.00033424,4]
[314879297,1708609875258,-512.8,0.00033424,4]
[314879298,1708609875267,-808.19,0.00033424,4]
[314879299,1708609875276,-500.0,0.00033424,4]
[314879300,1708609875285,-500.0,0.00033424,4]
[314879301,1708609875294,-500.0,0.00033424,4]
[314879302,1708609875303,-500.0,0.00033424,4]
[314879303,1708609875313,-531.69,0.00033424,4]
[314879304,1708609875322,-937.72,0.00033424,4]
[314879305,1708609875332,-848.4,0.00033424,4]
[314879306,1708609875341,-1174.87,0.00033424,4]
[314879307,1708609875351,-1350.79,0.00033424,4]
[314879308,1708609875360,-3468.28,0.00033424,4]
[314879309,1708609875369,-3036.49,0.00033424,4]
[314879310,1708609875379,-2252.07600722,0.00033424,4]
[314879311,1708609875402,-789.45606039,0.00033424,4]
[314879312,1708609875414,-365.58793239,0.00033424,4]
[314879313,1708609875423,-500.0,0.00033424,4]
[314879314,1708609875433,-768.11,0.00033424,4]
[314879315,1708609875441,-1078.7,0.00033424,4]
[314879316,1708609875451,-745.04,0.00033424,4]
[314879317,1708609875460,-500.0,0.00033424,4]
[314879318,1708609875469,-825.39,0.00033424,4]
[314879319,1708609875479,-576.04,0.00033424,4]
[314879320,1708609875488,-500.0,0.00033424,4]
[314879321,1708609875498,-500.0,0.00033424,4]
[314879322,1708609875507,-547.91772121,0.00033424,4]
[314879323,1708609875519,-694.64227879,0.00033424,4]
[314879324,1708609875529,-500.0,0.00033424,4]
[314879325,1708609875539,-500.0,0.00033424,4]
[314879326,1708609875548,-13963.74,0.00033424,4]
[314879327,1708609875558,-500.0,0.00033424,4]
[314879328,1708609875567,-500.0,0.00033424,4]
[314879329,1708609875576,-1561.5,0.00033424,4]
[314879330,1708609875586,-724.87,0.00033424,4]
[314879331,1708609875595,-1135.05,0.00033424,4]
[314879332,1708609875605,-1170.94,0.00033424,4]
[314879333,1708609875690,-500.0,0.00033424,4]
[314879334,1708609875700,-500.0,0.00033424,4]
[314879335,1708609875710,-716.12,0.00033424,4]
[314879336,1708609875719,-500.0,0.00033424,4]
[314879337,1708609875730,-500.0,0.00033424,4]
[314879338,1708609875739,-500.0,0.00033424,4]
[314879339,1708609875749,-500.0,0.00033424,4]
[314879340,1708609875758,-493.13772118,0.00033424,4]
[314879341,1708609875774,-6.86227882,0.00033424,4]
[314879342,1708609875783,-262.02271484,0.00033424,4]
[314879343,1708609875814,-790.95,0.00032876,2]
[314879344,1708609875823,-1009.18728516,0.00033424,4]
[314879345,1708609875833,-626.09,0.00033424,4]
[314879346,1708609875842,-570.76,0.00033424,4]
[314879347,1708609875851,-1096.11,0.00033424,4]
[314879348,1708609875860,-785.95,0.00033424,4]
[314879349,1708609875870,-500.0,0.00033424,4]
[314879350,1708609875879,-500.0,0.00033424,4]
[314879351,1708609875889,-500.0,0.00033424,4]
[314879352,1708609875900,-1088.96,0.00033424,4]
[314879353,1708609875910,-1197.14,0.00033424,4]
[314879354,1708609875919,-1351.81,0.00033424,4]
[314879355,1708609875929,-500.0,0.00033424,4]
[314879356,1708609875939,-500.0,0.00033424,4]
[314879357,1708609875948,-500.0,0.00033424,4]
[314879358,1708609875957,-587.28,0.00033424,4]
[314879359,1708609875966,-500.0,0.00033424,4]
[314879360,1708609875975,-500.0,0.00033424,4]
[314879361,1708609875985,-887.23,0.00033424,4]
[314879362,1708609875994,-1234.6,0.00033424,4]
[314879363,1708609876003,-781.64,0.00033424,4]
[314879364,1708609876012,-500.0,0.00033424,4]
[314879365,1708609876021,-865.4,0.00033424,4]
[314879366,1708609876031,-500.0,0.00033424,4]
[314879367,1708609876040,-1813.35,0.00033424,4]
[314879368,1708609876049,-1230.12,0.00033424,4]
[314879369,1708609876058,-500.0,0.00033424,4]
[314879370,1708609876068,-500.0,0.00033424,4]
[314879371,1708609876077,-556.52891367,0.00033424,4]
[314879372,1708609876086,-727.13,0.00033424,4]
[314879373,1708609876095,-855.21,0.00033424,4]
[314879374,1708609876104,-314.99542652,0.00033424,4]
[314879375,1708609876114,-500.0,0.00033424,4]
[314879376,1708609876124,-4448.36,0.00033424,4]
[314879377,1708609876133,-824.56,0.00033424,4]
[314879378,1708609876142,-2290.08,0.00033424,4]
[314879379,1708609876159,-500.0,0.00033424,4]
[314879380,1708609876169,-500.0,0.00033424,4]
[314879381,1708609876179,-919.6,0.00033424,4]
[314879382,1708609876190,-6760.81,0.00033424,4]
[314879383,1708609876207,-632.46,0.00033424,4]
[314879384,1708609876220,-2081.64,0.00033424,4]
[314879385,1708609876238,-2395.18,0.00033424,4]
[314879386,1708609876253,-806.36,0.00033424,4]
[314879387,1708609876267,-1438.06,0.00033424,4]
[314879388,1708609876278,-500.0,0.00033424,4]
[314879389,1708609876287,-548.54673161,0.00033424,4]
[314879390,1708609876296,-500.0,0.00033424,4]
[314879391,1708609876306,-3233.26,0.00033424,4]
[314879392,1708609876319,-909.68,0.00033424,4]
[314879393,1708609876335,-6739.12,0.00033424,4]
[314879394,1708609876344,-598.96344402,0.00033424,4]
[314879395,1708609876354,-500.0,0.00033424,4]
[314879396,1708609876364,-200.0,0.00033427,3]
[314879397,1708609876373,-800.0,0.00033427,2]
[314879398,1708609876382,-150.0,0.00033442,2]
[314879399,1708609876395,-150.0,0.00033447,2]
[314879400,1708609876408,-150.0,0.00033449,2]
[314879401,1708609876417,-150.0,0.00033451,2]
[314879402,1708609876427,-150.0,0.00033464,2]
[314879403,1708609876437,-1500.0,0.00033465,2]
[314879404,1708609876447,-777.80073138,0.00033472,2]
[314879405,1708609876458,-151.0,0.00033472,30]
[314879406,1708609876468,-150.0,0.00033477,2]
[314879407,1708609876477,-317.60619111,0.00033479,2]
[314879408,1708609876487,-150.0,0.00033482,2]
[314879409,1708609876496,-150.0,0.00033482,2]
[314879410,1708609876505,-402.94,0.00033488,2]
[314879411,1708609876514,-1255.40848475,0.00033489,5]
[314879412,1708609876523,-397.55733628,0.000335,2]
[314879413,1708609876532,-250.0,0.000335,2]
[314879414,1708609876541,-250.0,0.000335,2]
[314879415,1708609876550,-250.0,0.000335,2]
[314879416,1708609876559,-250.0,0.000335,2]
[314879417,1708609876568,-250.0,0.000335,2]
[314879418,1708609876577,-258.4,0.000335,2]
[314879419,1708609876587,-150.0,0.00033501,2]
[314879420,1708609876596,-150.0,0.00033502,2]
[314879421,1708609876604,-433.19647468,0.00033512,2]
[314879422,1708609876613,-150.0,0.00033512,2]
[314879423,1708609876623,-150.0,0.0003353,2]
[314879424,1708609876632,-500.0,0.0003353,2]
[314879425,1708609876642,-500.0,0.0003353,2]
[314879426,1708609876656,-500.0,0.0003353,2]
[314879427,1708609876668,-500.0,0.0003353,2]
[314879428,1708609876679,-500.0,0.0003353,2]
[314879429,1708609876688,-294.8852,0.0003353,2]
[314879430,1708609876699,-1000.0,0.0003353,2]
[314879431,1708609876709,-1000.0,0.0003353,2]
[314879432,1708609876718,-1000.0,0.0003353,2]
[314879433,1708609876728,-1000.0,0.0003353,2]
[314879434,1708609876737,-1000.0,0.0003353,2]
[314879435,1708609876747,-1000.0,0.0003353,2]
[314879436,1708609876756,-1000.0,0.0003353,2]
[314879437,1708609876765,-1000.0,0.0003353,2]
[314879438,1708609876775,-1000.0,0.0003353,2]
[314879439,1708609876784,-1000.0,0.0003353,2]
[314879440,1708609876793,-1000.0,0.0003353,2]
[314879441,1708609876803,-1000.0,0.0003353,2]
[314879442,1708609876814,-1000.0,0.0003353,2]
[314879443,1708609876824,-1000.0,0.0003353,2]
[314879444,1708609876833,-1000.0,0.0003353,2]
[314879445,1708609876857,-1000.0,0.0003353,2]
[314879446,1708609876893,-792.4393,0.0003353,2]
[314879447,1708609876940,-500.0,0.0003353,2]
[314879448,1708609876950,-500.0,0.0003353,2]
[314879449,1708609877028,-500.0,0.0003353,2]
[314879450,1708609877059,-500.0,0.0003353,2]
[314879451,1708609877159,-500.0,0.0003353,2]
[314879452,1708609877172,-500.0,0.0003353,2]
[314879453,1708609877182,-501.5601,0.0003353,2]
[314879454,1708609877201,-170.63002382,0.00033536,2]
[314879455,1708609877211,-150.0,0.00033539,2]
[314879456,1708609877220,-150.0,0.00033546,2]
[314879457,1708609877230,-1500.0,0.00033546,2]
[314879458,1708609877239,-150.0,0.00033548,2]
[314879459,1708609877248,-150.0,0.00033556,2]
[314879460,1708609877267,-150.0,0.00033557,2]
[314879461,1708609877277,-406.29,0.00033562,2]
[314879462,1708609877287,-917.7,0.00033562,2]
[314879463,1708609877296,-406.29,0.00033562,2]
[314879464,1708609877306,-917.7,0.00033562,2]
[314879465,1708609877316,-150.0,0.00033562,2]
[314879466,1708609877333,-150.0,0.00033567,2]
[314879467,1708609877342,-150.0,0.00033574,2]
[314879468,1708609877351,-300.0,0.00033575,2]
[314879469,1708609877361,-230.4,0.00033585,2]
[314879470,1708609877370,-1423.07435702,0.00033594,2]
[314879471,1708609877874,-500.0,0.00032876,2]
[314879472,1708609877884,-76.92564298,0.00033594,2]
[314879473,1708609877895,-1500.0,0.000336,13]
[314879474,1708609877908,-1000.0,0.000336,7]
[314879475,1708609877918,-1500.0,0.00033603,2]
[314879476,1708609877928,-150.0,0.00033619,2]
[314879477,1708609877938,-150.0,0.00033628,2]
[314879478,1708609877948,-150.0,0.00033629,2]
[314879479,1708609877958,-150.0,0.00033635,2]
[314879480,1708609877968,-150.0,0.00033646,2]
[314879481,1708609877978,-4782.3435573,0.00033652,2]
[314879482,1708609877987,-402.94,0.00033655,2]
[314879483,1708609877997,-150.0,0.00033655,2]
[314879484,1708609878006,-18712.79079972,0.00033675,2]
[314879485,1708609885057,656.06452058,0.00024798,2]
[314879486,1708609886931,89.20499853,0.00023,2]
[314879487,1708609886955,8407.11792789,0.00023,2]
[314879488,1708609886981,559.0,0.00023,2]
[314879489,1708609887005,550.0,0.00023,2]
[314879490,1708609887030,492.74326237,0.00023,2]
[314879491,1708609887060,119052.15614062,0.00023,2]
[314879497,1708610236545,10000.0,2.8e-05,4]
[314879498,1708610350958,-248.89210399,0.0002689,2]
[314879499,1708610350979,-221.83141858,0.00026891,2]
[314879500,1708610350998,-207.458,0.00026899,2]
[314879544,1708610644234,-221.83141858,0.00024999,2]
[314879545,1708610644255,-248.89210399,0.00024999,2]
[314879546,1708610644276,-750.0,0.00025,3]
[314879585,1708611031619,-221.83141858,0.00026486,2]
[314879586,1708611031629,-248.89210399,0.00026486,2]